bitfinex-derivatives/quotes_SOLF0:USTF0_20250113
["timestamp","ask_amount","ask_price","bid_price","bid_amount"]
[1736752166359,13.02163697,182.25,182.16,4.454]
[1736752166560,13.02163697,182.25,182.13,16.15323697]
[1736752166761,2.7456,182.21,182.15,2.7464]
[1736752166959,13.02163697,182.25,182.13,16.15323697]
[1736752167161,13.02163697,182.22,182.09,14.61703697]
[1736752167365,2.746,182.19,182.11,2.747]
[1736752167665,1.6175,182.21,182.09,1.5954]
[1736752168366,2.7459,182.19,182.13,2.7468]
[1736752169061,2.7459,182.19,182.09,22.44797952]
[1736752169462,2.7457,182.21,182.09,22.44797952]
[1736752169663,6.1,182.23,182.12,20.85257952]
[1736752170064,6.1,182.23,182.17,2.746]
[1736752170263,6.1,182.23,182.15,20.85257952]
[1736752170568,6.1,182.23,182.16,4.9465]
[1736752170964,6.1,182.3,182.18,20.85257952]
[1736752171166,3.2639,182.33,182.21,20.85257952]
[1736752171365,1.6874,182.34,182.24,20.85257952]
[1736752171570,76.8935381,182.35,182.24,20.85257952]
[1736752171868,76.8935381,182.35,182.25,1.6912]
[1736752172266,6.1,182.39,182.28,2.7444]
[1736752172664,1.6291,182.4,182.28,2.7444]
[1736752172866,6.1,182.39,182.28,2.7444]
[1736752173065,2.7435,182.35,182.28,2.7444]
[1736752174373,6.1,182.39,182.28,2.7444]
[1736752174565,2.7437,182.34,182.28,2.7444]
[1736752174965,20.85257952,182.38,182.26,3.2591]
[1736752175170,20.85257952,182.38,182.25,1.6912]
[1736752175366,1.701,182.37,182.25,1.6912]
[1736752175568,2.7442,182.3,182.25,1.6912]
[1736752177670,2.7444,182.29,182.22,2.7453]
[1736752177870,20.85257952,182.35,182.2,3.254]
[1736752178277,20.85257952,182.35,182.22,2.7454]
[1736752179075,20.85257952,182.35,182.23,2.7453]
[1736752179675,2.7443,182.3,182.2,3.254]
[1736752180276,20.85257952,182.35,182.2,3.254]
[1736752180574,1.701,182.37,182.2,3.254]
[1736752180981,20.85257952,182.35,182.2,3.254]
[1736752181878,2.7441,182.31,182.22,2.7454]
[1736752182076,20.85257952,182.35,182.22,2.7454]
[1736752182271,20.85257952,182.35,182.2,3.254]
[1736752183882,2.7448,182.27,182.22,2.7454]
[1736752184083,6.1,182.31,182.2,3.254]
[1736752184381,3.302,182.3,182.2,3.254]
[1736752184587,2.7447,182.27,182.21,2.7455]
[1736752184779,2.7447,182.27,182.2,3.254]
[1736752185380,2.7451,182.24,182.19,1.6267]
[1736752185780,1.6284,182.29,182.19,1.6267]
[1736752186685,6.1,182.31,182.21,20.85257952]
[1736752186887,6.1,182.34,182.21,20.85257952]
[1736752187089,6.1,182.34,182.22,1.5743]
[1736752187383,20.85257952,182.35,182.22,1.5743]
[1736752187384,2.7442,182.31,182.22,1.5743]
[1736752187586,2.7442,182.31,182.22,3.1329]
[1736752187881,2.7442,182.31,182.25,2.7449]
[1736752189290,6.1,182.35,182.25,2.7449]
[1736752189291,2.7443,182.3,182.25,2.7449]
[1736752189783,6.1,182.35,182.22,3.1329]
[1736752189979,2.7441,182.31,182.22,3.1329]
[1736752190192,6.1,182.35,182.22,3.1329]
[1736752190386,2.7439,182.32,182.26,2.7447]
[1736752190791,5.0179,182.37,182.24,20.85257952]
[1736752191289,103.82292988,182.41,182.27,20.85257952]
[1736752191485,76.87035036,182.41,182.27,20.85257952]
[1736752191691,2.7432,182.38,182.31,2.7439]
[1736752191884,2.7432,182.38,182.28,1.6083]
[1736752193093,2.7432,182.38,182.32,2.7438]
[1736752194189,2.7432,182.37,182.32,2.7438]
[1736752194393,76.87035036,182.41,182.3,2.7441]
[1736752194593,97.72292988,182.41,182.3,2.7441]
[1736752194995,2.7435,182.36,182.3,2.7441]
[1736752195196,2.7435,182.36,182.31,2.744]
[1736752195796,2.7432,182.37,182.31,2.744]
[1736752195987,76.87035036,182.41,182.32,2.7438]
[1736752196293,76.87035036,182.41,182.28,1.6083]
[1736752196491,2.743,182.38,182.28,1.6083]
[1736752197087,76.87035036,182.41,182.25,20.85257952]
[1736752197290,2.7436,182.35,182.29,2.7443]
[1736752197489,2.7436,182.35,182.27,13.00579713]
[1736752197695,13.00579713,182.39,182.27,13.00579713]
[1736752198290,2.7431,182.38,182.32,2.7438]
[1736752199093,2.7431,182.38,182.33,2.7437]
[1736752200200,76.87035036,182.41,182.3,13.00579713]
[1736752200392,4.8559,182.43,182.33,13.00579713]
[1736752201901,1.6591,182.43,182.33,13.00579713]
[1736752202092,2.7426,182.41,182.36,2.7432]
[1736752202293,1.6591,182.43,182.33,13.00579713]
[1736752202598,1.6591,182.43,182.26,6.1]
[1736752202599,13.00579713,182.42,182.3,13.00579713]
[1736752202900,2.7431,182.38,182.32,2.7438]
[1736752203088,2.7431,182.38,182.3,13.00579713]
[1736752204199,2.7431,182.38,182.33,2.7436]
[1736752204500,13.00579713,182.42,182.3,13.00579713]
[1736752205101,2.7426,182.41,182.36,2.7433]
[1736752208092,2.7424,182.42,182.38,2.743]
[1736752208293,1.6591,182.43,182.36,13.00579713]
[1736752208493,9.4106,182.47,182.36,13.00579713]
[1736752208805,3.3306,182.47,182.4,2.7427]
[1736752209189,2.7425,182.42,182.38,2.7429]
[1736752209394,13.00579713,182.45,182.33,13.00579713]
[1736752209595,13.00579713,182.42,182.31,1.6775]
[1736752209795,2.7432,182.38,182.33,2.7437]
[1736752209992,13.00579713,182.45,182.33,13.00579713]
[1736752210992,2.7425,182.42,182.37,2.743]
[1736752211194,13.00579713,182.45,182.34,1.5828]
[1736752211397,1.6402,182.46,182.36,13.00579713]
[1736752211594,4.382,182.46,182.41,2.7425]
[1736752211904,6.08,182.5,182.39,13.00579713]
[1736752212099,13.00579713,182.51,182.39,13.00579713]
[1736752212398,2.7417,182.47,182.39,13.00579713]
[1736752212904,13.00579713,182.51,182.39,13.00579713]
[1736752212905,2.7412,182.5,182.39,13.00579713]
[1736752213105,2.7412,182.5,182.4,1.7098]
[1736752213307,13.00579713,182.51,182.4,1.7098]
[1736752213505,2.7415,182.48,182.4,1.7098]
[1736752214096,2.7415,182.48,182.42,2.7423]
[1736752214297,2.7412,182.51,182.42,13.00579713]
[1736752214497,2.7412,182.51,182.45,2.7419]
[1736752215105,2.7412,182.5,182.44,2.7421]
[1736752216404,5.0233,182.52,182.42,13.00579713]
[1736752216606,13.00579713,182.51,182.4,1.7098]
[1736752217206,5.0233,182.52,182.42,13.00579713]
[1736752217806,5.0233,182.52,182.44,2.7421]
[1736752218004,3.3366,182.52,182.44,2.7421]
[1736752218209,2.7414,182.49,182.42,13.00579713]
[1736752218413,3.3366,182.52,182.45,2.742]
[1736752218708,2.7412,182.5,182.45,2.742]
[1736752218908,1.5877,182.54,182.49,2.7413]
[1736752219107,1.5877,182.54,182.45,13.00579713]
[1736752219306,2.7403,182.57,182.48,13.00579713]
[1736752219513,2.7403,182.57,182.51,2.7409]
[1736752220108,3.3935,182.59,182.48,13.00579713]
[1736752220309,13.00579713,182.58,182.45,13.00579713]
[1736752220710,13.00579713,182.55,182.45,13.00579713]
[1736752220905,2.7412,182.51,182.45,15.74769713]
[1736752221110,13.00579713,182.55,182.45,13.00579713]
[1736752221308,2.7408,182.54,182.49,2.7412]
[1736752221713,13.00579713,182.55,182.45,13.00579713]
[1736752221914,15.74639713,182.55,182.49,2.7413]
[1736752222116,13.00579713,182.55,182.49,2.7413]
[1736752222308,13.00579713,182.58,182.49,2.7413]
[1736752222514,2.7404,182.56,182.49,2.7413]
[1736752222813,13.00579713,182.58,182.47,2.7415]
[1736752223018,13.00579713,182.58,182.45,13.00579713]
[1736752223211,3.3935,182.59,182.48,13.00579713]
[1736752223909,2.7403,182.56,182.48,13.00579713]
[1736752224114,3.3935,182.59,182.51,13.00579713]
[1736752224515,2.7401,182.58,182.53,2.7408]
[1736752224915,3.3935,182.59,182.51,13.00579713]
[1736752225313,1.5877,182.61,182.54,13.00579713]
[1736752225712,6.08,182.66,182.54,13.00579713]
[1736752226211,1.645,182.68,182.57,13.00579713]
[1736752226521,1.645,182.68,182.6,13.00579713]
[1736752226814,2.7387,182.67,182.62,2.7394]
[1736752227111,1.645,182.68,182.6,13.00579713]
[1736752227417,142.45661956,182.74,182.6,13.00579713]
[1736752228319,136.37661956,182.74,182.63,13.00579713]
[1736752229019,2.7385,182.68,182.63,13.00579713]
[1736752229312,136.37661956,182.74,182.63,13.00579713]
[1736752229516,13.00579713,182.71,182.58,13.00579713]
[1736752229913,136.37661956,182.74,182.61,13.00579713]
[1736752230113,2.7384,182.69,182.63,2.7392]
[1736752231018,136.37661956,182.74,182.61,13.00579713]
[1736752231213,13.00579713,182.71,182.61,13.00579713]
[1736752231619,19.08579713,182.71,182.61,13.00579713]
[1736752232215,19.08579713,182.71,182.58,13.00579713]
[1736752232421,13.00579713,182.68,182.57,2.74]
[1736752232618,1.6045,182.67,182.57,2.74]
[1736752233016,1.5413,182.66,182.55,2.7403]
[1736752233316,1.5413,182.66,182.53,4.7601]
[1736752233317,13.00579713,182.65,182.53,4.7601]
[1736752233521,14.56049713,182.65,182.53,4.7601]
[1736752233914,1.5547,182.65,182.53,4.7601]
[1736752234517,1.5547,182.65,182.58,13.00579713]
[1736752234919,2.7389,182.66,182.58,13.00579713]
[1736752235131,19.08579713,182.71,182.61,13.00579713]
[1736752235421,6.08,182.71,182.61,13.00579713]
[1736752235622,2.7384,182.7,182.64,2.7391]
[1736752236825,2.7384,182.7,182.64,15.74489713]
[1736752237025,6.08,182.71,182.66,2.7388]
[1736752237320,6.08,182.71,182.62,20.72809853]
[1736752237629,2.7385,182.69,182.63,2.7391]
[1736752237830,1.5547,182.72,182.59,20.72809853]
[1736752238123,1.5547,182.72,182.61,2.7395]
[1736752238124,2.7385,182.69,182.61,2.7395]
[1736752238327,1.5547,182.72,182.59,20.72809853]
[1736752238721,2.7384,182.69,182.65,2.739]
[1736752239222,2.7381,182.71,182.66,2.7387]
[1736752239412,3.2004,182.73,182.62,20.72809853]
[1736752239817,1.679,182.77,182.62,22.37859853]
[1736752240220,1.679,182.77,182.65,20.72809853]
[1736752241120,2.7376,182.74,182.65,20.72809853]
[1736752241327,1.679,182.77,182.65,20.72809853]
[1736752241922,2.7379,182.73,182.68,2.7384]
[1736752242123,1.679,182.77,182.65,20.72809853]
[1736752242320,1.679,182.77,182.62,22.37859853]
[1736752243020,2.7378,182.73,182.64,2.7391]
[1736752243218,1.679,182.77,182.64,2.7391]
[1736752243619,2.7383,182.7,182.64,2.7391]
[1736752243820,1.679,182.77,182.64,2.7391]
[1736752244016,1.679,182.77,182.62,20.72809853]
[1736752244237,2.7383,182.7,182.65,2.739]
[1736752244421,1.679,182.77,182.62,20.72809853]
[1736752244623,2.7378,182.73,182.63,2.7391]
[1736752244925,1.679,182.77,182.62,20.72809853]
[1736752245425,2.7386,182.68,182.62,23.46739853]
[1736752245626,2.7386,182.68,182.62,20.72809853]
[1736752246223,195.679,182.77,182.64,2.7391]
[1736752246421,195.679,182.77,182.62,20.72809853]
[1736752246822,195.679,182.77,182.65,2.7389]
[1736752247123,2.7384,182.69,182.65,2.7389]
[1736752248325,195.679,182.77,182.61,3.4076]
[1736752248524,195.679,182.77,182.69,2.7383]
[1736752248725,195.679,182.77,182.65,20.72809853]
[1736752249631,195.679,182.77,182.69,2.7382]
[1736752249926,195.679,182.77,182.65,20.72809853]
[1736752250135,195.679,182.77,182.62,20.72809853]
[1736752250721,2.7382,182.71,182.62,20.72809853]
[1736752250921,195.679,182.77,182.62,20.72809853]
[1736752251124,195.679,182.77,182.65,2.7389]
[1736752251324,195.679,182.77,182.62,20.72809853]
[1736752251526,195.679,182.77,182.65,20.72809853]
[1736752251725,195.679,182.77,182.65,2.7388]
[1736752251726,2.7378,182.73,182.65,2.7388]
[1736752251927,201.759,182.77,182.62,20.72809853]
[1736752252323,2.7386,182.68,182.63,2.7391]
[1736752252529,20.72809853,182.75,182.59,20.72809853]
[1736752252732,20.72809853,182.72,182.59,20.72809853]
[1736752253127,1.6657,182.74,182.59,20.72809853]
[1736752253128,2.7385,182.69,182.59,20.72809853]
[1736752253831,2.7385,182.69,182.64,2.7391]
[1736752255632,1.6426,182.73,182.62,20.72809853]
[1736752255829,1.6426,182.73,182.59,20.72809853]
[1736752256833,2.7387,182.67,182.62,2.7394]
[1736752257027,1.6426,182.73,182.59,20.72809853]
[1736752257429,2.7385,182.69,182.63,2.7392]
[1736752257639,2.7385,182.69,182.59,20.72809853]
[1736752258327,2.7388,182.67,182.59,20.72809853]
[1736752258528,1.6426,182.73,182.59,20.72809853]
[1736752258838,2.7385,182.69,182.59,20.72809853]
[1736752259433,2.7385,182.68,182.63,2.7391]
[1736752260034,2.7387,182.67,182.62,15.69793134]
[1736752260234,1.6426,182.73,182.62,12.95853134]
[1736752260439,12.95853134,182.71,182.59,12.95853134]
[1736752260734,2.739,182.65,182.61,2.7395]
[1736752261534,2.739,182.65,182.59,12.95853134]
[1736752262042,2.7385,182.69,182.62,12.95853134]
[1736752262536,2.7387,182.67,182.62,12.95853134]
[1736752262944,1.6426,182.73,182.62,12.95853134]
[1736752263139,2.7385,182.69,182.63,2.7391]
[1736752263335,1.6426,182.73,182.63,2.7391]
[1736752263743,2.7385,182.68,182.63,2.7391]
[1736752264143,1.6426,182.73,182.62,12.95853134]
[1736752264448,6.08,182.72,182.62,12.95853134]
[1736752264841,2.7389,182.66,182.62,12.95853134]
[1736752265350,6.08,182.72,182.62,12.95853134]
[1736752265552,2.7385,182.68,182.64,2.739]
[1736752266247,2.7382,182.7,182.65,2.7388]
[1736752266851,2.7387,182.67,182.63,2.7391]
[1736752267054,6.08,182.72,182.63,2.7391]
[1736752267451,6.08,182.72,182.62,12.95853134]
[1736752267653,12.95853134,182.71,182.59,12.95853134]
[1736752267953,2.7386,182.68,182.6,2.7397]
[1736752268149,12.95853134,182.71,182.59,12.95853134]
[1736752268360,1.6683,182.83,182.69,12.95853134]
[1736752268551,16.17963134,182.81,182.72,2.7379]
[1736752268751,16.17963134,182.81,182.69,12.95853134]
[1736752268951,91.11630458,182.79,182.69,12.95853134]
[1736752269152,2.7374,182.76,182.71,2.738]
[1736752269353,91.11630458,182.79,182.71,2.738]
[1736752269749,2.7372,182.77,182.72,2.7379]
[1736752269950,2.7372,182.77,182.69,12.95853134]
[1736752270358,2.737,182.78,182.72,2.7379]
[1736752271159,2.737,182.78,182.72,15.69643134]
[1736752271458,16.17963134,182.81,182.69,12.95853134]
[1736752272053,2.7377,182.74,182.69,12.95853134]
[1736752272253,16.17963134,182.81,182.69,12.95853134]
[1736752272655,2.7379,182.73,182.69,12.95853134]
[1736752273261,12.95853134,182.78,182.67,2.7385]
[1736752273559,2.738,182.72,182.67,2.7385]
[1736752273963,2.738,182.72,182.66,15.69733134]
[1736752274162,2.738,182.72,182.66,12.95853134]
[1736752274357,12.95853134,182.78,182.66,12.95853134]
[1736752274358,2.7377,182.74,182.66,12.95853134]
[1736752274762,2.7377,182.74,182.69,12.95853134]
[1736752275063,16.17963134,182.81,182.69,12.95853134]
[1736752275363,3.2211,182.81,182.72,12.95853134]
[1736752276556,3.2211,182.81,182.72,15.69643134]
[1736752276766,3.2211,182.81,182.72,12.95853134]
[1736752277064,2.737,182.79,182.72,12.95853134]
[1736752277662,6.06,182.82,182.72,12.95853134]
[1736752277966,19.01853134,182.82,182.69,12.95853134]
[1736752278363,19.01853134,182.82,182.71,2.738]
[1736752278763,19.01853134,182.82,182.69,12.95853134]
[1736752278963,2.7377,182.74,182.69,15.69673134]
[1736752279173,12.95853134,182.79,182.66,12.95853134]
[1736752279375,3.2939,182.78,182.66,12.95853134]
[1736752280069,2.7381,182.71,182.67,2.7386]
[1736752280270,6.06,182.74,182.63,17.87593134]
[1736752280476,19.01853134,182.74,182.63,17.87593134]
[1736752281171,2.7384,182.69,182.65,2.7389]
[1736752281370,2.7384,182.69,182.63,16.33143134]
[1736752281672,19.01853134,182.74,182.63,16.33143134]
[1736752281871,19.01853134,182.74,182.67,2.7386]
[1736752282071,19.01853134,182.74,182.63,16.33143134]
[1736752283067,19.01853134,182.74,182.67,2.7386]
[1736752283068,2.7381,182.71,182.67,2.7386]
[1736752283575,2.7381,182.71,182.63,16.33143134]
[1736752283873,2.7382,182.7,182.63,16.33143134]
[1736752284275,19.01853134,182.74,182.63,16.33143134]
[1736752284478,19.01853134,182.74,182.63,1.7036]
[1736752284675,1.7006,182.73,182.63,1.7036]
[1736752284974,2.7385,182.69,182.63,4.4427]
[1736752285570,1.7006,182.73,182.63,1.7036]
[1736752285775,12.95853134,182.71,182.6,12.95853134]
[1736752285976,1.6792,182.7,182.6,12.95853134]
[1736752286175,2.7388,182.66,182.6,15.69813134]
[1736752286477,12.95853134,182.68,182.58,1.6543]
[1736752286669,2.7394,182.63,182.58,1.6543]
[1736752287268,12.95853134,182.68,182.57,16.27303134]
[1736752287878,12.95853134,182.68,182.57,3.3145]
[1736752288177,12.95853134,182.65,182.54,12.95853134]
[1736752288383,19.01853134,182.65,182.53,2.7406]
[1736752288574,2.74,182.59,182.53,2.7406]
[1736752289175,2.74,182.58,182.53,2.7406]
[1736752289377,12.95853134,182.62,182.51,18.99713134]
[1736752289576,12.95853134,182.62,182.51,16.25623134]
[1736752290279,12.95853134,182.62,182.5,1.5841]
[1736752290582,12.95853134,182.59,182.46,3.1778]
[1736752290880,12.95853134,182.59,182.48,12.95853134]
[1736752291076,3.3085,182.61,182.51,12.95853134]
[1736752291474,2.74,182.58,182.51,12.95853134]
[1736752291879,3.3085,182.61,182.51,12.95853134]
[1736752292075,3.3085,182.61,182.53,2.7407]
[1736752292275,3.3085,182.61,182.51,12.95853134]
[1736752293080,2.7399,182.59,182.54,2.7406]
[1736752293272,2.7399,182.59,182.51,12.95853134]
[1736752294880,3.3085,182.61,182.51,12.95853134]
[1736752295079,12.95853134,182.6,182.48,12.95853134]
[1736752295476,2.7406,182.55,182.48,15.70003134]
[1736752295871,2.7406,182.55,182.48,12.95853134]
[1736752296080,2.7406,182.54,182.48,15.69993134]
[1736752296281,12.95853134,182.6,182.48,12.95853134]
[1736752296678,2.7409,182.52,182.46,3.1778]
[1736752296979,12.95853134,182.57,182.46,3.1778]
[1736752297785,2.7413,182.5,182.44,4.382]
[1736752297981,2.7413,182.5,182.44,1.64]
[1736752298582,2.7413,182.5,182.44,4.3821]
[1736752299382,2.7409,182.52,182.47,2.7416]
[1736752299883,2.7409,182.52,182.45,12.95853134]
[1736752300083,6.06,182.54,182.45,12.95853134]
[1736752300284,2.7412,182.5,182.44,1.64]
[1736752300685,2.7417,182.47,182.42,2.7423]
[1736752300885,12.95853134,182.51,182.4,12.95853134]
[1736752301888,2.7417,182.47,182.41,2.7424]
[1736752302181,12.95853134,182.48,182.39,3.2043]
[1736752302588,2.7422,182.44,182.39,3.2043]
[1736752303984,3.3663,182.53,182.39,3.2043]
[1736752304183,12.95853134,182.51,182.39,3.2043]
[1736752304586,2.7416,182.48,182.39,3.2043]
[1736752304790,12.95853134,182.51,182.41,2.7424]
[1736752305496,2.7418,182.47,182.41,2.7424]
[1736752306086,12.95853134,182.51,182.41,2.7424]
[1736752306392,12.95853134,182.48,182.39,3.2043]
[1736752306687,12.95853134,182.48,182.4,2.7427]
[1736752307083,12.95853134,182.48,182.39,3.2043]
[1736752307283,2.7422,182.44,182.39,4.356]
[1736752307486,12.95853134,182.48,182.39,2.7428]
[1736752307687,12.95853134,182.48,182.35,3.2406]
[1736752307991,2.7426,182.41,182.37,2.7431]
[1736752308386,2.7426,182.41,182.36,2.7433]
[1736752308587,2.7426,182.41,182.35,3.2406]
[1736752308588,2.7418,182.47,182.39,12.95853134]
[1736752309083,2.7418,182.46,182.41,2.7424]
[1736752309287,195.6599,182.51,182.39,12.95853134]
[1736752309991,2.7418,182.46,182.41,2.7425]
[1736752310591,2.742,182.45,182.4,2.7427]
[1736752311590,195.6599,182.51,182.39,12.95853134]
[1736752311793,2.7417,182.47,182.42,15.70093134]
[1736752312090,1.6599,182.51,182.42,12.95853134]
[1736752312287,2.742,182.45,182.42,12.95853134]
[1736752312493,3.2092,182.51,182.42,12.95853134]
[1736752313196,2.7422,182.44,182.42,12.95853134]
[1736752313794,2.7415,182.49,182.42,15.70093134]
[1736752314093,3.2092,182.51,182.42,15.70093134]
[1736752314696,3.2092,182.51,182.42,12.95853134]
[1736752315085,2.7419,182.46,182.42,12.95853134]
[1736752316194,2.7419,182.46,182.42,15.70093134]
[1736752316595,2.7419,182.46,182.42,12.95853134]
[1736752316796,2.7419,182.46,182.42,15.70093134]
[1736752317398,2.7416,182.48,182.44,2.7421]
[1736752318390,2.7416,182.48,182.45,12.95853134]
[1736752321997,1.656,182.53,182.45,12.95853134]
[1736752322196,17.64351797,182.58,182.48,12.95853134]
[1736752322197,2.7413,182.5,182.48,12.95853134]
[1736752322704,1.6647,182.56,182.48,12.95853134]
[1736752323398,2.741,182.52,182.48,12.95853134]
[1736752323591,1.6647,182.56,182.48,12.95853134]
[1736752323994,1.6647,182.56,182.45,12.95853134]
[1736752324401,2.7419,182.46,182.42,12.95853134]
[1736752325098,2.7419,182.46,182.42,15.70083134]
[1736752325399,1.6051,182.54,182.42,12.95853134]
[1736752325604,12.95853134,182.52,182.42,12.95853134]
[1736752326502,12.95853134,182.52,182.39,12.95853134]
[1736752327001,12.95853134,182.52,182.4,2.7426]
[1736752327202,12.95853134,182.49,182.36,12.95853134]
[1736752327400,12.95853134,182.46,182.36,12.95853134]
[1736752327599,7.7233,182.48,182.39,12.95853134]
[1736752329104,2.7419,182.46,182.4,2.7427]
[1736752329302,7.7233,182.48,182.4,2.7427]
[1736752329700,7.7233,182.48,182.41,2.7425]
[1736752329701,2.7418,182.47,182.41,2.7425]
[1736752329900,7.7233,182.48,182.41,2.7425]
[1736752330103,6.06,182.48,182.42,12.95853134]
[1736752330303,2.7412,182.51,182.45,12.95853134]
[1736752331499,2.7412,182.51,182.48,12.95853134]
[1736752331696,2.7405,182.55,182.48,12.95853134]
[1736752331902,1.6993,182.59,182.51,12.95853134]
[1736752332404,2.7406,182.55,182.51,12.95853134]
[1736752332613,1.6993,182.59,182.51,12.95853134]
[1736752336108,2.7406,182.54,182.51,12.95853134]
[1736752337011,2.7401,182.58,182.52,2.7409]
[1736752337307,2.7401,182.58,182.54,12.95853134]
[1736752339608,2.7402,182.57,182.54,12.95853134]
[1736752340511,22.27163134,182.63,182.51,12.95853134]
[1736752341610,12.95853134,182.6,182.48,12.95853134]
[1736752343712,2.7405,182.55,182.5,2.7411]
[1736752344109,12.95853134,182.6,182.48,12.95853134]
[1736752344514,12.95853134,182.57,182.45,12.95853134]
[1736752345710,2.7409,182.52,182.47,2.7416]
[1736752345917,12.95853134,182.57,182.47,2.7416]
[1736752346113,12.95853134,182.57,182.45,12.95853134]
[1736752347218,2.7412,182.51,182.46,2.7418]
[1736752347412,12.95853134,182.57,182.46,2.7418]
[1736752347613,12.95853134,182.59,182.46,2.7418]
[1736752348415,2.7412,182.51,182.46,2.7418]
[1736752349921,12.95853134,182.59,182.48,12.95853134]
[1736752350313,2.741,182.52,182.48,12.95853134]
[1736752350617,2.741,182.52,182.48,15.69993134]
[1736752350916,2.7406,182.55,182.48,12.95853134]
[1736752351118,6.06,182.61,182.51,12.95853134]
[1736752351523,206.95853134,182.62,182.51,12.95853134]
[1736752351818,6.06,182.61,182.51,12.95853134]
[1736752352115,2.7408,182.54,182.48,12.95853134]
[1736752352420,6.06,182.61,182.48,12.95853134]
[1736752352619,2.7408,182.53,182.49,2.7412]
[1736752353613,2.741,182.52,182.48,12.95853134]
[1736752353920,12.95853134,182.59,182.45,12.95853134]
[1736752354325,12.95853134,182.59,182.47,2.7416]
[1736752354516,12.95853134,182.59,182.45,12.95853134]
[1736752355416,2.7412,182.51,182.46,2.7418]
[1736752355818,12.95853134,182.56,182.45,15.70043134]
[1736752356120,12.95853134,182.53,182.35,144.54703116]
[1736752356317,7.6434,182.52,182.4,12.95853134]
[1736752356513,9.2898,182.52,182.4,12.95853134]
[1736752357322,2.742,182.45,182.4,12.95853134]
[1736752358421,2.742,182.45,182.4,15.70123134]
[1736752358622,9.2898,182.52,182.4,12.95853134]
[1736752358926,3.2298,182.52,182.45,2.7419]
[1736752359224,2.7415,182.48,182.43,12.95853134]
[1736752359416,3.2298,182.52,182.43,12.95853134]
[1736752359819,3.2298,182.52,182.4,12.95853134]
[1736752360025,12.95853134,182.5,182.4,12.95853134]
[1736752360416,2.742,182.45,182.4,12.95853134]
[1736752360620,2.742,182.45,182.4,15.70113134]
[1736752361016,2.7421,182.44,182.4,15.70113134]
[1736752361225,2.7421,182.44,182.4,12.95853134]
[1736752361421,12.95853134,182.5,182.4,12.95853134]
[1736752361618,2.7423,182.43,182.37,12.95853134]
[1736752361823,12.95853134,182.5,182.37,15.70163134]
[1736752362024,12.95853134,182.47,182.37,12.95853134]
[1736752362227,12.95853134,182.47,182.36,4.9288]
[1736752362427,12.95853134,182.44,182.34,12.95853134]
[1736752362730,2.7429,182.39,182.34,12.95853134]
[1736752363122,6.06,182.43,182.34,12.95853134]
[1736752363724,6.06,182.43,182.37,12.95853134]
[1736752364228,200.06,182.49,182.37,12.95853134]
[1736752364436,2.7422,182.44,182.39,2.7428]
[1736752364634,194.0,182.49,182.4,12.95853134]
[1736752364925,2.742,182.45,182.4,15.70123134]
[1736752365119,194.0,182.49,182.4,12.95853134]
[1736752365322,194.0,182.49,182.38,1.6046]
[1736752365830,12.95853134,182.47,182.37,12.95853134]
[1736752366034,12.95853134,182.47,182.34,12.95853134]
[1736752366223,2.7429,182.39,182.34,15.70213134]
[1736752368527,2.7432,182.37,182.34,12.95853134]
[1736752368923,14.58033134,182.44,182.34,12.95853134]
[1736752369331,1.6218,182.44,182.37,12.95853134]
[1736752369525,1.5581,182.45,182.37,12.95853134]
[1736752370325,2.7425,182.42,182.37,15.70153134]
[1736752370530,1.5581,182.45,182.37,12.95853134]
[1736752371027,2.7427,182.41,182.37,12.95853134]
[1736752371927,1.5581,182.45,182.37,12.95853134]
[1736752372133,2.7422,182.44,182.39,2.7428]
[1736752374135,6.06,182.46,182.39,2.7428]
[1736752374331,6.06,182.46,182.37,12.95853134]
[1736752374930,6.06,182.49,182.37,12.95853134]
[1736752375134,6.06,182.49,182.38,4.8873]
[1736752375835,6.06,182.49,182.41,2.7425]
[1736752376235,2.7416,182.48,182.43,2.7422]
[1736752376431,6.06,182.52,182.43,12.95853134]